Workbook

Sheet Estimated Costs
A1: University of Arkansas System Health Benefits Calculator for 2025 Plan Year
A2: Disclaimer: | K2: Hide these rows prior to distribution
A3: The scenarios presented here are illustrative and are only meant to provide a basis for comparison among the three medical plan options. The scenarios are not a guarantee of future results. The actual costs of services may vary depending on when and where services are performed.
A6: Instructions:
A8: First, select your desired coverage election in cell B13 (highlighted blue).
A9: Next, add your monthly employee premium for health insurance for each medical plan option in cells B16, B17, and B18 (highlighted green).
A10: Refer to your campus HR website or contact your campus HR department if you are unsure of your monthly empoyee premium.
A11: The monthly employee premium should be on a 12-month basis.
A13: Choose your coverage election | B13: Employee Only
A15: Enter your monthly premium (12-month basis) for the following plans: | M15: Activate Macro?
A16: Health Savings Plan | B16: 65 | K16: <<< 2x bi-weekly single EE contrib for next year | M16: Y
A17: Classic Plan | B17: 90 | K17: <<< 2x bi-weekly single EE contrib for next year
A18: Premier Plan | B18: 350 | K18: <<< 2x bi-weekly single EE contrib for next year
A20: You will see how total health care costs compare among each of the medical plan options in two different claim scenarios:
A21: • A "Low Health Care Needs" scenario
A22: • A "High Health Care Needs" scenario
A24: Output: | O24: Prior to release, click this button
A25: Based on your inputs, see below for two examples illustrating your total estimated out-of-pocket expenses under each plan.
K26: Number of visits | L26: Indiciator
A27: Employee Only - Low Health Care Needs | L27: =+IF(OR($B$13="Employee Only",$M$16="N"),1,0) -> 1
L28: 1
A29: ="• "&K29&" preventive doctor’s office visit: "&TEXT(Lists!$C$19*K29,"$0")&" ($0 member cost in-network, since in-network preventive visits are covered at 100%)" -> • 1 preventive doctor’s office visit: $207 ($0 member cost in-network, since in-network preventive visits are covered at 100%) | K29: 1 | L29: 1
A30: ="• "&K30&" diagnostic doctor’s office visit: "&TEXT(Lists!$C$20*K30,"$0") -> • 1 diagnostic doctor’s office visit: $228 | K30: 1 | L30: 1
A31: ="• "&K31&" Tier-2 drug: "&TEXT(Lists!$C$30*K31,"$0") -> • 1 Tier-2 drug: $300 | K31: 1 | L31: 1
L32: 1
A33: Your Annual Costs | L33: 1
B34: Health Savings Plan | C34: Classic Plan | D34: Premier Plan | L34: 1
A35: Preventive visit | B35: 0 | C35: 0 | D35: 0 | L35: 1
A36: Office visit | B36: =+Lists!$C$20*$K30 -> 228 | C36: =P46*$K30 -> 35 | D36: =Q46*$K30 -> 25 | L36: 1 | M36: Plan Design Comparison: G:\Pricing & Modeling\12672 - University of Arkansas\Plan Designs
A37: Tier-2 prescription drugs | B37: =+Lists!$C$30*$K31 -> 300 | C37: =P53*$K31 -> 62 | D37: =Q53*$K31 -> 57 | L37: 1
A38: Total out-of-pocket expenses | B38: =+SUM(B35:B37) -> 528 | C38: =+SUM(C35:C37) -> 97 | D38: =+SUM(D35:D37) -> 82 | L38: 1 | M38: 2025 Plan Designs
A39: University contribution to Health Savings Account | B39: =+IF($B$13="Employee Only",$O$59,$O$60) -> 650 | C39: N/A | D39: N/A | L39: 1 | O39: Health Savings Plan | P39: Classic Plan | Q39: Premier Plan
A40: Employee premium for coverage | B40: =+$B$16*12 -> 780 | C40: =+$B$17*12 -> 1080 | D40: =+$B$18*12 -> 4200 | L40: =+IF(OR($B$13="Employee Only",$M$16="N"),1,0) -> 1 | M40: Medical
A41: Employee net cost | B41: =+B38+B40-B39 -> 658 | C41: =+C38+C40 -> 1177 | D41: =+D38+D40 -> 4282 | L41: 1 | M41: Deductible | N41: Single | O41: 3300 | P41: 1350 | Q41: 800
L42: 1 | N42: Family | O42: 6200 | P42: 2700 | Q42: 1600
A43: ="Based on these expenses, the lowest-cost option for you would be the "&INDEX(B34:D34,MATCH(MIN(B41:D41),B41:D41,0))&"." -> Based on these expenses, the lowest-cost option for you would be the Health Savings Plan. | L43: 1 | M43: Coinsurance | O43: 0.1 | P43: 0.25 | Q43: 0.2
L44: 1 | M44: Out-of-Pocket Maximum | N44: Single | O44: 6750 | P44: 5250 | Q44: 3200
L45: 1 | N45: Family | O45: 13300 | P45: 10500 | Q45: 6400
A46: Employee Only - High Health Care Needs | L46: 1 | M46: PCP Office Visit | O46: =O43 -> 0.1 | P46: 35 | Q46: 25
L47: 1 | M47: Specialist Office Visit | O47: =O43 -> 0.1 | P47: 55 | Q47: 45
A48: ="• "&K48&" preventive doctor’s office visit: "&TEXT(Lists!$C$19*K48,"$0")&" ($0 member cost in-network, since in-network preventive visits are covered at 100%)" -> • 1 preventive doctor’s office visit: $207 ($0 member cost in-network, since in-network preventive visits are covered at 100%) | K48: 1 | L48: 1
A49: ="• "&K49&" emergency room visit: "&TEXT(Lists!$C$21*K49,"$0,00") -> • 1 emergency room visit: $2,905 | K49: 1 | L49: 1 | M49: Prescription Drug | O49: Health Savings Plan | P49: Classic Plan | Q49: Premier Plan
A50: ="• "&K50&" days in the hospital: "&TEXT(Lists!$C$22*K50,"$0,00") -> • 8 days in the hospital: $30,224 | K50: 8 | L50: 1 | M50: Out-of-Pocket Maximum | N50: Single | O50: Combined with Medical | P50: 1800 | Q50: 1800
A51: ="• "&K51&" specialist doctor’s office visits: "&TEXT(Lists!$C$23*K51,"$0,00") -> • 3 specialist doctor’s office visits: $1,230 | K51: 3 | L51: 1 | N51: Family | O51: Combined with Medical | P51: 3600 | Q51: 3600
A52: ="• "&K52&" Tier-2 drugs: "&TEXT(Lists!$C$30*K52,"$0,00") -> • 3 Tier-2 drugs: $900 | K52: 3 | L52: 1 | M52: Tier 1 Drug | O52: 0.1 | P52: 18 | Q52: 14
L53: 1 | M53: Tier 2 Drug | O53: 0.1 | P53: 62 | Q53: 57
A54: Your Annual Costs | L54: 1 | M54: Tier 3 Drug | O54: 0.1 | P54: 97 | Q54: 92
B55: Health Savings Plan | C55: Classic Plan | D55: Premier Plan | J55: HSA | K55: Class/Prem | L55: 1
A56: Preventive visit | B56: 0 | C56: 0 | D56: 0 | J56: MRx | K56: Med | L56: 1 | M56: Hospical Inpatient Services | N56: Copay, then coinsurance | O56: 0.1 | P56: 300 | Q56: 300
A57: Emergency room visit (admitted) | B57: =+Lists!$C$21*$K49 -> 2905 | C57: 0 | D57: 0 | J57: MRx | K57: Med | L57: 1 | M57: Outpatient Diagnostic Testing and Surgical Services | N57: Copay, then coinsurance | O57: 0.1 | P57: 160 | Q57: 80
A58: Hospital stay | B58: =+IF(SUMIFS(B$56:B57, $J$56:$J57, $J58)>O$44, 0, IF(MAX((O$41-SUMIFS(B$56:B57, $J$56:$J57, $J58)), 0)+(Lists!$C$22*$K50-MAX((O$41-SUMIFS(B$56:B57, $J$56:$J57, $J58)), 0))*O$43 + SUMIFS(B$56:B57, $J$56:$J57, $J58)>O$44, O$44-SUMIFS(B$56:B57, $J$56:$J57, $J58), MAX((O$41-SUMIFS(B$56:B57, $J$56:$J57, $J58)), 0)+(Lists!$C$22*$K50-(O$41-SUMIFS(B$56:B57, $J$56:$J57, $J58)))*O$43)) -> 3377.9 | C58: =+IF(SUMIFS(C$56:C57, $K$56:$K57, $K58)>P$44, 0, IF(MAX((P$41-SUMIFS(C$56:C57, $K$56:$K57, $K58)), 0)+(Lists!$C$22*$K50-MAX((P$41-SUMIFS(C$56:C57, $K$56:$K57, $K58)), 0))*P$43 + SUMIFS(C$56:C57, $K$56:$K57, $K58)>P$44, P$44-SUMIFS(C$56:C57, $K$56:$K57, $K58), MAX((P$41-SUMIFS(C$56:C57, $K$56:$K57, $K58)), 0)+(Lists!$C$22*$K50-(P$41-SUMIFS(C$56:C57, $K$56:$K57, $K58)))*P$43)) -> 5250 | D58: =+IF(SUMIFS(D$56:D57, $K$56:$K57, $K58)>Q$44, 0, IF(MAX((Q$41-SUMIFS(D$56:D57, $K$56:$K57, $K58)), 0)+(Lists!$C$22*$K50-MAX((Q$41-SUMIFS(D$56:D57, $K$56:$K57, $K58)), 0))*Q$43 + SUMIFS(D$56:D57, $K$56:$K57, $K58)>Q$44, Q$44-SUMIFS(D$56:D57, $K$56:$K57, $K58), MAX((Q$41-SUMIFS(D$56:D57, $K$56:$K57, $K58)), 0)+(Lists!$C$22*$K50-(Q$41-SUMIFS(D$56:D57, $K$56:$K57, $K58)))*Q$43)) -> 3200 | J58: MRx | K58: Med | L58: 1
A59: Specialist office visits | B59: =+IF(SUMIFS(B$56:B58, $J$56:$J58, $J59)>O$44, 0, IF(MAX((O$41-SUMIFS(B$56:B58, $J$56:$J58, $J59)), 0)+(Lists!$C$23*$K51-MAX((O$41-SUMIFS(B$56:B58, $J$56:$J58, $J59)), 0))*O$43 + SUMIFS(B$56:B58, $J$56:$J58, $J59)>O$44, O$44-SUMIFS(B$56:B58, $J$56:$J58, $J59), MAX((O$41-SUMIFS(B$56:B58, $J$56:$J58, $J59)), 0)+(Lists!$C$23*$K51-MAX((O$41-SUMIFS(B$56:B58, $J$56:$J58, $J59)), 0))*O$43)) -> 123 | C59: =+IF(SUMIFS(C$56:C58, $K$56:$K58, $K59)>P$44, 0, IF(MAX((P$41-SUMIFS(C$56:C58, $K$56:$K58, $K59)), 0)+(Lists!$C$22*$K51-MAX((P$41-SUMIFS(C$56:C58, $K$56:$K58, $K59)), 0))*P$43 + SUMIFS(C$56:C58, $K$56:$K58, $K59)>P$44, P$44-SUMIFS(C$56:C58, $K$56:$K58, $K59), MAX((P$41-SUMIFS(C$56:C58, $K$56:$K58, $K59)), 0)+(Lists!$C$22*$K51-(P$41-SUMIFS(C$56:C58, $K$56:$K58, $K59)))*P$43)) -> 0 | D59: =+IF(SUMIFS(D$56:D58, $K$56:$K58, $K59)>Q$44, 0, IF(MAX((Q$41-SUMIFS(D$56:D58, $K$56:$K58, $K59)), 0)+(Lists!$C$22*$K51-MAX((Q$41-SUMIFS(D$56:D58, $K$56:$K58, $K59)), 0))*Q$43 + SUMIFS(D$56:D58, $K$56:$K58, $K59)>Q$44, Q$44-SUMIFS(D$56:D58, $K$56:$K58, $K59), MAX((Q$41-SUMIFS(D$56:D58, $K$56:$K58, $K59)), 0)+(Lists!$C$22*$K51-(Q$41-SUMIFS(D$56:D58, $K$56:$K58, $K59)))*Q$43)) -> 0 | J59: MRx | K59: Med | L59: 1 | M59: HSA Contribution | N59: Single | O59: 650
A60: Tier-2 prescriptions drugs | B60: =+IF(SUMIFS(B$56:B59, $J$56:$J59, $J60)>O$44, 0, IF(MAX((O$41-SUMIFS(B$56:B59, $J$56:$J59, $J60)), 0)+(Lists!$C$30*$K52-MAX((O$41-SUMIFS(B$56:B59, $J$56:$J59, $J60)), 0))*O$43 + SUMIFS(B$56:B59, $J$56:$J59, $J60)>O$44, O$44-SUMIFS(B$56:B59, $J$56:$J59, $J60), MAX((O$41-SUMIFS(B$56:B59, $J$56:$J59, $J60)), 0)+(Lists!$C$30*$K52-MAX((O$41-SUMIFS(B$56:B59, $J$56:$J59, $J60)), 0))*O$43)) -> 90 | C60: =P53*$K52 -> 186 | D60: =Q53*$K52 -> 171 | J60: MRx | K60: Rx | L60: 1 | M60: HSA Contribution | N60: Family | O60: 1200
A61: Total out-of-pocket expenses | B61: =+SUM(B56:B60) -> 6495.9 | C61: =+SUM(C56:C60) -> 5436 | D61: =+SUM(D56:D60) -> 3371 | L61: 1
A62: University contribution to Health Savings Account | B62: =+IF($B$13="Employee Only",$O$59,$O$60) -> 650 | C62: N/A | D62: N/A | L62: 1
A63: Employee premium for coverage | B63: =+$B$16*12 -> 780 | C63: =+$B$17*12 -> 1080 | D63: =+$B$18*12 -> 4200 | L63: 1 | M63: https://benefits.uasys.edu/health/health-savings-account/
A64: Employee net cost | B64: =+B61+B63-B62 -> 6625.9 | C64: =+C61+C63 -> 6516 | D64: =+D61+D63 -> 7571 | L64: 1
L65: 1
A66: ="Based on these expenses, the lowest-cost option for you would be the "&INDEX(B55:D55,MATCH(MIN(B64:D64),B64:D64,0))&"." -> Based on these expenses, the lowest-cost option for you would be the Classic Plan. | L66: 1 | N66: Remaining deductible for 1 person in family plan after initial person meets single deductible | O66: =O42-O41 -> 2900
L67: 1
L68: 1
A69: Employee and Spouse - Low Health Care Needs | L69: =+IF(OR($B$13="Employee & Spouse",$M$16="N"),1,0) -> 0
L70: =+IF(OR($B$13="Employee & Spouse",$M$16="N"),1,0) -> 0
A71: Employee's Expenses | L71: 0
A72: ="• "&$K72&" preventive doctor’s office visit: "&TEXT(Lists!$C$19*$K72,"$0")&" ($0 member cost in-network, since in-network preventive visits are covered at 100%)" -> • 1 preventive doctor’s office visit: $207 ($0 member cost in-network, since in-network preventive visits are covered at 100%) | K72: 1 | L72: 0
A73: ="• "&K73&" Tier-1 drugs: "&TEXT(Lists!$C$29*K73,"$0,00") -> • 12 Tier-1 drugs: $600 | K73: 12 | L73: 0
A74: ="• "&$K74&" doctor’s office visits: "&TEXT(Lists!$C$20*$K74,"$0") -> • 2 doctor’s office visits: $456 | K74: 2 | L74: 0
A75: ="• "&$K75&" specialist doctor’s office visits: "&TEXT(Lists!$C$23*$K75,"$0,00") -> • 2 specialist doctor’s office visits: $820 | K75: 2 | L75: 0
L76: 0
A77: Spouse's Expenses | L77: 0
A78: ="• "&$K78&" preventive doctor’s office visit: "&TEXT(Lists!$C$19*$K78,"$0")&" ($0 member cost in-network, since in-network preventive visits are covered at 100%)" -> • 1 preventive doctor’s office visit: $207 ($0 member cost in-network, since in-network preventive visits are covered at 100%) | K78: 1 | L78: 0
A79: ="• "&K79&" Tier-1 drugs: "&TEXT(Lists!$C$29*$K79,"$0,00") -> • 6 Tier-1 drugs: $300 | K79: 6 | L79: 0
A80: ="• "&K80&" doctor’s office visits: "&TEXT(Lists!$C$20*$K80,"$0,00") -> • 2 doctor’s office visits: $456 | K80: 2 | L80: 0
A81: ="• "&K81&" Tier-2 drug: "&TEXT(Lists!$C$30*K81,"$0,00") -> • 1 Tier-2 drug: $300 | K81: 1 | L81: 0
L82: 0
A83: Your Annual Costs | L83: 0
B84: Health Savings Plan | C84: Classic Plan | D84: Premier Plan | L84: 0
A85: Preventive visits for each family member | B85: 0 | C85: 0 | D85: 0 | L85: 0
A86: Employee's Tier-1 prescription drugs | B86: =+Lists!C29*K73 -> 600 | C86: =P52*$K73 -> 216 | D86: =Q52*$K73 -> 168 | L86: 0
A87: Employee's office visits | B87: =+Lists!C20*K74 -> 456 | C87: =$K74*P46 -> 70 | D87: =$K74*Q46 -> 50 | L87: 0
A88: Employee's specialist office visits | B88: =+Lists!C23*K75 -> 820 | C88: =P47*$K75 -> 110 | D88: =Q47*$K75 -> 90 | L88: 0
A89: Spouse's Tier-1 prescription drugs | B89: =+Lists!C29*K79 -> 300 | C89: =P52*$K79 -> 108 | D89: =Q52*$K79 -> 84 | L89: 0
A90: Spouse's office visits | B90: =+Lists!C20*K80 -> 456 | C90: =P46*$K80 -> 70 | D90: =Q46*$K80 -> 50 | L90: 0
A91: Spouse's Tier-2 prescription drugs | B91: =+Lists!C30*K81 -> 300 | C91: =P53*$K81 -> 62 | D91: =Q53*$K81 -> 57 | L91: 0
A92: Total out-of-pocket expenses | B92: =+SUM(B85:B91) -> 2932 | C92: =+SUM(C85:C91) -> 636 | D92: =+SUM(D85:D91) -> 499 | L92: 0
A93: University contribution to Health Savings Account | B93: =+IF($B$13="Employee Only",$O$59,$O$60) -> 650 | C93: N/A | D93: N/A | L93: 0
A94: Employee premium for coverage | B94: =+$B$16*12 -> 780 | C94: =+$B$17*12 -> 1080 | D94: =+$B$18*12 -> 4200 | L94: 0
A95: Employee net cost | B95: =+B92+B94-B93 -> 3062 | C95: =+C92+C94 -> 1716 | D95: =+D92+D94 -> 4699 | L95: 0
L96: 0
A97: ="Based on these expenses, the lowest cost option for you would be the "&INDEX(B84:D84,MATCH(MIN(B95:D95),B95:D95,0))&"." -> Based on these expenses, the lowest cost option for you would be the Classic Plan. | L97: 0
L98: 0
L99: 0
A100: Employee and Spouse - High Health Care Needs | L100: 0
L101: 0
A102: Spouse's Expenses | L102: 0
A103: ="• "&$K103&" ambulance: "&TEXT(Lists!$C$24*$K103,"$0,00") -> • 1 ambulance: $2,274 | K103: 1 | L103: 0
A104: ="• "&$K104&" emergency room visit: "&TEXT(Lists!$C$21*$K104,"$0,00") -> • 1 emergency room visit: $2,905 | K104: 1 | L104: 0
A105: ="• "&$K105&" days in the hospital: "&TEXT(Lists!$C$22*$K105,"$0,000") -> • 7 days in the hospital: $26,446 | K105: 7 | L105: 0
A106: ="• "&$K106&" Tier-3 drugs: "&TEXT(Lists!$C$31*$K106,"$0,00") -> • 2 Tier-3 drugs: $4,000 | K106: 2 | L106: 0
A107: ="• "&$K107&" specialist doctor’s office visits: "&TEXT(Lists!$C$23*$K107,"$0,00") -> • 3 specialist doctor’s office visits: $1,230 | K107: 3 | L107: 0
A108: ="• "&K108&" physical therapy visits: "&TEXT(Lists!$C$25*$K108,"$0,00") -> • 14 physical therapy visits: $4,550 | K108: 14 | L108: 0
L109: 0
A110: Your Annual Costs | L110: 0
B111: Health Savings Plan | C111: Classic Plan | D111: Premier Plan | L111: 0
A112: Spouse's ambulance | B112: =+Lists!C24*K103 -> 2274 | C112: 0 | D112: 0 | L112: 0
A113: Spouse's emergency room visit (admitted) | B113: =+Lists!C21*K104 -> 2905 | C113: 0 | D113: 0 | L113: 0
A114: Spouse's hospital stay | B114: =+(O41-B113-B112)+(Lists!C22*K105-(O41-B113-B112))*O43 -> 953.5 | C114: =MIN(P56+P41+(Lists!$C$22*K105-P56-P41)*P43,P44) -> 5250 | D114: =MIN(Q56+Q41+(Lists!$C$22*K105-Q56-Q41)*Q43,Q44) -> 3200 | L114: 0
A115: Spouse's Tier-3 prescription drugs | B115: =Lists!C31*O54*K106 -> 400 | C115: =P54*K106 -> 194 | D115: =Q54*K106 -> 184 | L115: 0
A116: Spouse's specialist office visits | B116: =Lists!C23*K107*O47 -> 123 | C116: =MIN(K107*P47,MAX(0,P44-C114)) -> 0 | D116: =MIN(K107*Q47,MAX(0,Q44-D114)) -> 0 | L116: 0
A117: Spouse's physical therapy visits | B117: =Lists!C25*K108*O43 -> 455 | C117: =MIN(P47+(Lists!$C$25*K108-P47)*P43,MAX(P44-C116-C114-C113-C112,0)) -> 0 | D117: =MIN(Q47+(Lists!$C$25*K108-Q47)*Q43,MAX(Q44-D116-D114-D113-D112,0)) -> 0 | L117: 0
A118: Total out-of-pocket expenses | B118: =+SUM(B112:B117) -> 7110.5 | C118: =+SUM(C112:C117) -> 5444 | D118: =+SUM(D112:D117) -> 3384 | L118: 0
A119: University contribution to Health Savings Account | B119: =+IF($B$13="Employee Only",$O$59,$O$60) -> 650 | C119: N/A | D119: N/A | L119: 0
A120: Employee premium for coverage | B120: =+$B$16*12 -> 780 | C120: =+$B$17*12 -> 1080 | D120: =+$B$18*12 -> 4200 | L120: 0
A121: Employee net cost | B121: =+B118+B120-B119 -> 7240.5 | C121: =+C118+C120 -> 6524 | D121: =+D118+D120 -> 7584 | L121: 0
L122: 0
A123: ="Based on these expenses, the lowest cost option for you would be the "&INDEX(B111:D111,MATCH(MIN(B121:D121),B121:D121,0))&"." -> Based on these expenses, the lowest cost option for you would be the Classic Plan. | L123: 0
L124: 0
L125: 0
A126: Employee and Child - Low Health Care Needs | L126: =+IF(OR($B$13="Employee & Child(ren)",$M$16="N"),1,0) -> 0
L127: =+IF(OR($B$13="Employee & Child(ren)",$M$16="N"),1,0) -> 0
A128: Employee's Expenses | L128: 0
A129: ="• "&K129&" preventive doctor’s office visit: "&TEXT(Lists!$C$19*K129,"$0")&" ($0 member cost in-network, since in-network preventive visits are covered at 100%)" -> • 1 preventive doctor’s office visit: $207 ($0 member cost in-network, since in-network preventive visits are covered at 100%) | K129: 1 | L129: 0
A130: ="• "&K130&" doctor’s office visit: "&TEXT(Lists!$C$20*K130,"$0") -> • 1 doctor’s office visit: $228 | K130: 1 | L130: 0
A131: ="• "&K131&" Tier-1 drugs: "&TEXT(Lists!$C$29*K131,"$0") -> • 2 Tier-1 drugs: $100 | K131: 2 | L131: 0
L132: 0
A133: Child's Expenses | L133: 0
A134: ="• "&K134&" preventive doctor’s office visit: "&TEXT(Lists!$C$19*K134,"$0")&" ($0 member cost in-network, since in-network preventive visits are covered at 100%)" -> • 1 preventive doctor’s office visit: $207 ($0 member cost in-network, since in-network preventive visits are covered at 100%) | K134: 1 | L134: 0
A135: ="• "&K135&" Tier-2 drug: "&TEXT(Lists!$C$30*K135,"$0") -> • 1 Tier-2 drug: $300 | K135: 1 | L135: 0
A136: ="• "&K136&" doctor’s office visits: "&TEXT(Lists!$C$20*K136,"$0") -> • 2 doctor’s office visits: $456 | K136: 2 | L136: 0
L137: 0
A138: Your Annual Costs | L138: 0
B139: Health Savings Plan | C139: Classic Plan | D139: Premier Plan | L139: 0
A140: Preventive visits for each family member | B140: 0 | C140: 0 | D140: 0 | L140: 0
A141: Employee's office visit | B141: =+Lists!C20*K130 -> 228 | C141: =P46*$K130 -> 35 | D141: =Q46*$K130 -> 25 | L141: 0
A142: Employee's Tier-1 prescription drugs | B142: =+Lists!C29*K131 -> 100 | C142: =P52*$K131 -> 36 | D142: =Q52*$K131 -> 28 | L142: 0
A143: Child's office visits | B143: =+Lists!C20*K136 -> 456 | C143: =P46*$K136 -> 70 | D143: =Q46*$K136 -> 50 | L143: 0
A144: Child's Tier-2 prescription drugs | B144: =+Lists!C30*K135 -> 300 | C144: =P53*$K135 -> 62 | D144: =Q53*$K135 -> 57 | L144: 0
A145: Total out-of-pocket expenses | B145: =+SUM(B140:B144) -> 1084 | C145: =+SUM(C140:C144) -> 203 | D145: =+SUM(D140:D144) -> 160 | L145: 0
A146: University contribution to Health Savings Account | B146: =+IF($B$13="Employee Only",$O$59,$O$60) -> 650 | C146: N/A | D146: N/A | L146: 0
A147: Employee premium for coverage | B147: =+$B$16*12 -> 780 | C147: =+$B$17*12 -> 1080 | D147: =+$B$18*12 -> 4200 | L147: 0
A148: Employee net cost | B148: =+B145+B147-B146 -> 1214 | C148: =+C145+C147 -> 1283 | D148: =+D145+D147 -> 4360 | L148: 0
L149: 0
A150: ="Based on these expenses, the lowest cost option for you would be the "&INDEX(B139:D139,MATCH(MIN(B148:D148),B148:D148,0))&"." -> Based on these expenses, the lowest cost option for you would be the Health Savings Plan. | L150: 0
L151: 0
L152: 0
A153: Employee and Children - High Health Care Needs | L153: 0
L154: 0
A155: Employee's Expenses | L155: 0
A156: ="• "&K156&" preventive doctor’s office visit: "&TEXT(Lists!$C$19*K156,"$0")&" ($0 member cost in-network, since in-network preventive visits are covered at 100%)" -> • 1 preventive doctor’s office visit: $207 ($0 member cost in-network, since in-network preventive visits are covered at 100%) | K156: 1 | L156: 0
A157: ="• "&K157&" specialist doctor’s office visits: "&TEXT(Lists!$C$23*K157,"$000") -> • 2 specialist doctor’s office visits: $820 | K157: 2 | L157: 0
A158: ="• "&K158&" Tier-1 drugs: "&TEXT(Lists!$C$29*K158,"$0") -> • 5 Tier-1 drugs: $250 | K158: 5 | L158: 0
L159: 0
A160: Daughter's Expenses | L160: 0
A161: ="• "&K161&" urgent care visit: "&TEXT(Lists!$C$26*K161,"$0") -> • 1 urgent care visit: $273 | K161: 1 | L161: 0
A162: ="• "&K162&" Tier-3 drug: "&TEXT(Lists!$C$31*K162,"$0,00") -> • 1 Tier-3 drug: $2,000 | K162: 1 | L162: 0
A163: ="• "&K163&" days in the hospital: "&TEXT(Lists!$C$22*K163,"$0,00") -> • 7 days in the hospital: $26,446 | K163: 7 | L163: 0
A164: ="• "&K164&" specialist doctor’s office visits: "&TEXT(Lists!$C$23*K164,"$0,00") -> • 2 specialist doctor’s office visits: $820 | K164: 2 | L164: 0
L165: 0
A166: Son's Expenses | L166: 0
A167: ="• "&K167&" specialist doctor’s office visits: "&TEXT(Lists!$C$23*K167,"$0,00") -> • 2 specialist doctor’s office visits: $820 | K167: 2 | L167: 0
A168: ="• "&K168&" Tier-1 drugs: "&TEXT(Lists!$C$29*K168,"$0") -> • 3 Tier-1 drugs: $150 | K168: 3 | L168: 0
L169: 0
A170: Your Annual Costs | L170: 0
B171: Health Savings Plan | C171: Classic Plan | D171: Premier Plan | L171: 0
A172: Preventive visits for each family member | B172: 0 | C172: 0 | D172: 0 | L172: 0
A173: Employee's specialist office visits | B173: =+Lists!C23*K157 -> 820 | C173: =P47*$K157 -> 110 | D173: =Q47*$K157 -> 90 | L173: 0
A174: Employee's Tier-1 prescription drugs | B174: =+Lists!C29*K158 -> 250 | C174: =P52*$K158 -> 90 | D174: =Q52*$K158 -> 70 | L174: 0
A175: Daughter's urgent care visit | B175: =+Lists!C26*$K161 -> 273 | C175: =P47*$K161 -> 55 | D175: =Q47*$K161 -> 45 | L175: 0
A176: Daughter's Tier-3 prescription drugs | B176: =+Lists!C31*$K162 -> 2000 | C176: =P54*$K162 -> 97 | D176: =Q54*$K162 -> 92 | L176: 0
A177: Daughter's hospital stay | B177: =+(O$41-B175-B176)+(Lists!$C$22*K163-(O$41-B175-B176))*O$43 -> 3568.9 | C177: =MIN(P$56+P$41+(Lists!$C$22*$K163-P$56-P$41)*P$43,P$44-C175) -> 5195 | D177: =MIN(Q56+Q41+(Lists!$C$22*$K163-Q56-Q41)*Q43,Q44-D175) -> 3155 | L177: 0
A178: Daughter's specialist office visits | B178: =Lists!C23*K164*O47 -> 82 | C178: =MIN(P47*K164,P44-C175-C177) -> 0 | D178: =MIN(Q47*L164,Q44-D175-D177) -> 0 | L178: 0
A179: Son's specialist office visits | B179: =+Lists!C23*K167 -> 820 | C179: =P47*K167 -> 110 | D179: =Q47*L167 -> 0 | L179: 0
A180: Son's Tier-1 prescription drugs | B180: =+Lists!C29*K168 -> 150 | C180: =P52*K168 -> 54 | D180: =Q52*L168 -> 0 | L180: 0
A181: Total out-of-pocket expenses | B181: =+SUM(B172:B180) -> 7963.9 | C181: =+SUM(C172:C180) -> 5711 | D181: =+SUM(D172:D180) -> 3452 | L181: 0
A182: University contribution to Health Savings Account | B182: =+IF($B$13="Employee Only",$O$59,$O$60) -> 650 | C182: N/A | D182: N/A | L182: 0
A183: Employee premium for coverage | B183: =+$B$16*12 -> 780 | C183: =+$B$17*12 -> 1080 | D183: =+$B$18*12 -> 4200 | L183: 0
A184: Employee net cost | B184: =+B181+B183-B182 -> 8093.9 | C184: =+C181+C183 -> 6791 | D184: =+D181+D183 -> 7652 | L184: 0
L185: 0
A186: ="Based on these expenses, the lowest cost option for you would be the "&INDEX(B171:D171,MATCH(MIN(B184:D184),B184:D184,0))&"." -> Based on these expenses, the lowest cost option for you would be the Classic Plan. | L186: 0
L187: 0
L188: 0
A189: Employee and Family - Low Health Care Needs | L189: =+IF(OR($B$13="Employee & Family",$M$16="N"),1,0) -> 0
L190: =+IF(OR($B$13="Employee & Family",$M$16="N"),1,0) -> 0
A191: Employee's Expenses | L191: 0
A192: ="• "&K192&" doctor’s office visit: "&TEXT(Lists!$C$20*K192,"$0") -> • 3 doctor’s office visit: $684 | K192: 3 | L192: 0
A193: ="• "&K193&" Tier-1 drugs: "&TEXT(Lists!$C$29*K193,"$0") -> • 2 Tier-1 drugs: $100 | K193: 2 | L193: 0
A194: ="• "&K194&" Tier-2 drugs: "&TEXT(Lists!$C$30*K194,"$0,00") -> • 8 Tier-2 drugs: $2,400 | K194: 8 | L194: 0
L195: 0
A196: Spouse's Expenses | L196: 0
A197: ="• "&K197&" specialist doctor’s office visits: "&TEXT(Lists!$C$23*K197,"$0,00") -> • 4 specialist doctor’s office visits: $1,640 | K197: 4 | L197: 0
A198: ="• "&K198&" Tier-2 drugs: "&TEXT(Lists!$C$30*K198,"$0,00") -> • 3 Tier-2 drugs: $900 | K198: 3 | L198: 0
L199: 0
A200: Daughter's Expenses | L200: 0
A201: ="• "&K201&" preventive doctor’s office visit: "&TEXT(Lists!$C$19*K201,"$0")&" ($0 member cost in-network, since in-network preventive visits are covered at 100%)" -> • 1 preventive doctor’s office visit: $207 ($0 member cost in-network, since in-network preventive visits are covered at 100%) | K201: 1 | L201: 0
A202: ="• "&K202&" Tier-1 drugs: "&TEXT(Lists!$C$29*K202,"$0") -> • 2 Tier-1 drugs: $100 | K202: 2 | L202: 0
A203: ="• "&K203&" doctor’s office visit: "&TEXT(Lists!$C$20*K203,"$0") -> • 1 doctor’s office visit: $228 | K203: 1 | L203: 0
L204: 0
A205: Your Annual Costs | L205: 0
B206: Health Savings Plan | C206: Classic Plan | D206: Premier Plan | L206: 0
A207: Preventive visits for each family member | B207: 0 | C207: 0 | D207: 0 | L207: 0
... 58 more rows

Sheet Lists (hidden)
B2: For HSA | D2: Activate Macro?
B3: Employee Only | D3: Y
B4: Employee & Spouse | D4: N
B5: Employee & Child(ren)
B6: Employee & Family
B11: Password: | C11: SegalUAS20221
C17: 2025 Model | J17: 2024 | K17: 2025
B18: Costs of Services | C18: USE Model | D18: 2023 Model | E18: 2024 Model | F18: 2025 Model | K18: Assumed Trend
B19: Preventative Office Visit | C19: =INDEX(D19:I19, MATCH($C$17, $D$18:$I$18, 0)) -> 207 | D19: 182 | E19: 193 | F19: =+ROUND(E19*(1+$K19),0) -> 207 | J19: 0.06 | K19: 0.07
B20: Diagnostic Doctor Office Visit | C20: =INDEX(D20:I20, MATCH($C$17, $D$18:$I$18, 0)) -> 228 | D20: 135 | E20: 143 | F20: =+ROUND(186*(1+$K20)^3,0) -> 228 | J20: =+J19 -> 0.06 | K20: =+K19 -> 0.07
B21: ER Visit | C21: 2905 | D21: 1307 | E21: 1385 | F21: =+ROUND(2715*(1+$K21),0) -> 2905 | J21: =+J20 -> 0.06 | K21: 0.07
B22: 1 Day Hospital Stay | C22: 3778 | D22: 2882 | E22: 3055 | F22: =ROUND(D22*((1+K22)^4), 0) -> 3778 | J22: =J21 -> 0.06 | K22: 0.07
B23: Specialist Diagnostic Doctor Office Visit | C23: 410 | D23: 135 | E23: 143 | F23: =+ROUND(335*(1+$K23)^3,0) -> 410 | J23: =J22 -> 0.06 | K23: =$K$19 -> 0.07
B24: Ambulance | C24: 2274 | D24: 1102 | E24: 1168 | F24: =ROUND(2125*((1+K24)), 0) -> 2274 | J24: 0.06 | K24: 0.07
B25: Physical Therapy Visit | C25: 325 | D25: 253 | E25: 268 | F25: 325 | J25: 0.06 | K25: 0.07
B26: Urgent Care Visit | C26: 273 | D26: 164 | E26: 174 | F26: =ROUND((135+411)/2, 0) -> 273 | J26: 0.06 | K26: 0.07
B27: Outpatient Surgery | C27: 4383 | D27: 3343 | E27: 3544 | F27: =ROUND(E27/E22*F22, 0) -> 4383 | J27: =J26 -> 0.06 | K27: 0.07
B29: Tier 1 Drug | C29: 50 | D29: 36 | E29: 39 | F29: 50 | J29: 0.09 | K29: 0.12 | N29: < Trend from 7/1/24 Rate Projections Doc# 6403463
B30: Tier 2 Drug | C30: 300 | D30: 162 | E30: 177 | F30: 300 | J30: =+J29 -> 0.09 | K30: =+K29 -> 0.12
B31: Tier 3 Drug | C31: 2000 | D31: 1620 | E31: 1766 | F31: 2000 | J31: =+J30 -> 0.09 | K31: =+K30 -> 0.12
